bitfinex/quotes_SOLUSD_20251115
["timestamp","ask_amount","ask_price","bid_price","bid_amount"]
[1763242002096,8.46,140.25,140.22,2.97857714]
[1763242002306,8.46,140.25,140.2,0.69]
[1763242002307,8.46,140.25,140.21,2.97857714]
[1763242002510,0.67,140.24,140.21,2.97857714]
[1763242002693,7.80083099,140.24,140.21,2.97857714]
[1763242002896,7.80083099,140.24,140.21,1.906718]
[1763242003717,7.80083099,140.24,140.2,1.906718]
[1763242003718,0.68,140.23,140.2,1.906718]
[1763242003927,2.586718,140.23,140.19,1.906718]
[1763242004096,11.046718,140.23,140.19,1.906718]
[1763242004293,0.68,140.22,140.19,1.906718]
[1763242005332,7.81181525,140.22,140.19,1.906718]
[1763242005801,16.27133687,140.23,140.2,1.906718]
[1763242008509,0.68,140.22,140.2,1.906718]
[1763242008813,0.68,140.22,140.19,2.566718]
[1763242009193,7.1321589,140.21,140.18,18.8290488]
[1763242009407,7.1321589,140.21,140.18,1.906718]
[1763242009593,7.8121589,140.21,140.18,1.906718]
[1763242010012,7.8121589,140.21,140.18,2.566718]
[1763242010312,7.8121589,140.21,140.18,1.906718]
[1763242010494,7.8121589,140.21,140.18,9.04029486]
[1763242010695,0.68,140.21,140.18,9.04029486]
[1763242010913,0.68,140.21,140.18,9.70029486]
[1763242011597,7.81215905,140.21,140.18,1.906718]
[1763242012522,7.13215905,140.21,140.18,1.906718]
[1763242012718,7.81215905,140.21,140.18,1.906718]
[1763242012902,0.68,140.21,140.18,1.906718]
[1763242013101,0.68,140.21,140.18,2.566718]
[1763242013816,0.68,140.21,140.18,9.70039786]
[1763242014115,7.81233537,140.21,140.18,1.906718]
[1763242014303,0.68,140.21,140.18,1.906718]
[1763242014622,7.13192778,140.22,140.18,9.04032169]
[1763242014826,11.046718,140.21,140.16,9.04105775]
[1763242015201,0.68,140.2,140.16,9.04105775]
[1763242015401,0.68,140.2,140.16,9.70105775]
[1763242015943,7.81305991,140.2,140.16,9.04105775]
[1763242016313,0.68,140.19,140.16,9.04105775]
[1763242017002,7.81325152,140.19,140.16,9.04105775]
[1763242017501,0.68,140.19,140.17,1.906718]
[1763242017701,17.49931507,140.21,140.17,1.906718]
[1763242017908,0.68,140.19,140.17,1.906718]
[1763242019319,0.68,140.19,140.16,7.13469743]
[1763242019520,0.68,140.19,140.16,9.04141543]
[1763242020026,7.81323979,140.19,140.16,9.04141543]
[1763242020231,7.81323979,140.19,140.16,1.906718]
[1763242020527,0.68,140.18,140.16,1.906718]
[1763242022225,7.81378557,140.18,140.15,10.366718]
[1763242022604,7.81378557,140.18,140.14,0.66]
[1763242022605,0.68,140.17,140.14,1.906718]
[1763242022798,7.81425341,140.17,140.14,9.04238726]
[1763242023441,0.68,140.16,140.14,9.04238726]
[1763242024124,9.14,140.18,140.15,1.906718]
[1763242024328,0.68,140.17,140.13,9.12]
[1763242024507,0.68,140.17,140.13,16.2561989]
[1763242024817,0.68,140.17,140.16,1.906718]
[1763242025014,7.81414623,140.18,140.16,1.906718]
[1763242025626,0.68,140.18,140.16,1.906718]
[1763242027433,7.81372618,140.18,140.16,1.906718]
[1763242029822,0.68,140.17,140.16,1.906718]
[1763242031847,0.68,140.21,140.17,9.78882769]
[1763242032026,0.68,140.21,140.2,1.906718]
[1763242032423,8.46,140.24,140.2,1.906718]
[1763242032424,0.66,140.22,140.2,1.906718]
[1763242032654,0.66,140.24,140.21,1.906718]
[1763242032948,0.66,140.24,140.22,1.906718]
[1763242033234,0.66,140.24,140.21,1.906718]
[1763242033612,0.66,140.24,140.22,1.906718]
[1763242034025,0.72,140.26,140.23,1.906718]
[1763242034217,0.72,140.27,140.25,1.906718]
[1763242034943,0.72,140.29,140.26,1.906718]
[1763242035126,7.84827361,140.29,140.26,1.906718]
[1763242036441,16.30775865,140.3,140.27,1.906718]
[1763242037220,15.58775865,140.3,140.27,1.906718]
[1763242037549,0.72,140.29,140.27,1.906718]
[1763242037748,9.75498332,140.29,140.25,8.46]
[1763242037926,1.906718,140.28,140.24,10.366718]
[1763242038246,2.626718,140.28,140.24,10.366718]
[1763242038463,0.72,140.28,140.26,1.906718]
[1763242038633,7.12826532,140.29,140.27,1.906718]
[1763242038634,7.84826532,140.29,140.27,1.906718]
[1763242038834,7.84826532,140.29,140.26,1.906718]
[1763242039230,7.84826532,140.29,140.26,2.566718]
[1763242039641,8.46,140.3,140.27,2.566718]
[1763242039949,9.18,140.3,140.27,1.906718]
[1763242040155,7.12722141,140.31,140.28,1.906718]
[1763242040328,7.84722141,140.31,140.28,1.906718]
[1763242041426,38.95777059,140.32,140.28,9.69511261]
[1763242041630,38.95777059,140.32,140.29,1.906718]
[1763242041949,11.086718,140.32,140.28,0.66]
[1763242042148,18.2133506,140.32,140.29,0.66]
[1763242042451,9.7533506,140.32,140.28,10.44882769]
[1763242043356,9.7533506,140.32,140.28,0.66]
[1763242043653,9.03387411,140.31,140.28,0.66]
[1763242043951,1.906718,140.3,140.26,15.58960707]
[1763242044150,1.906718,140.3,140.27,0.66]
[1763242044452,9.75387411,140.31,140.27,0.66]
[1763242044944,9.03387411,140.31,140.27,0.66]
[1763242045148,2.626718,140.3,140.27,7.78909787]
[1763242045966,2.626718,140.3,140.27,7.12909787]
[1763242046132,2.626718,140.3,140.26,16.22955627]
[1763242046534,2.626718,140.3,140.26,37.35529617]
[1763242046750,2.626718,140.3,140.26,16.22955627]
[1763242047162,1.906718,140.28,140.25,18.22882769]
[1763242047384,1.906718,140.28,140.25,25.35885845]
[1763242047550,2.626718,140.28,140.25,25.35885845]
[1763242047748,7.12776726,140.3,140.24,7.79055159]
[1763242047749,1.906718,140.27,140.24,7.79055159]
[1763242047963,1.906718,140.26,140.23,9.78882769]
[1763242048166,1.906718,140.25,140.22,15.57149895]
[1763242048469,2.626718,140.25,140.22,8.44]
[1763242048641,2.626718,140.25,140.22,9.1]
[1763242048844,1.906718,140.25,140.22,8.44]
[1763242049079,1.906718,140.24,140.22,8.44]
[1763242049447,1.906718,140.24,140.21,7.13196637]
[1763242049646,1.906718,140.24,140.21,16.23196637]
[1763242050377,9.75692378,140.25,140.21,16.23196637]
[1763242050548,9.75692378,140.25,140.21,7.79196637]
[1763242050749,9.75692378,140.25,140.21,9.1]
[1763242050951,2.626718,140.25,140.21,16.23205144]
[1763242051783,7.626872,140.28,140.21,16.23205144]
[1763242051784,2.626718,140.28,140.23,1.906718]
[1763242052075,2.626718,140.28,140.24,9.1]
[1763242052955,1.906718,140.27,140.24,9.1]
[1763242053155,2.626718,140.27,140.24,9.1]
[1763242053459,7.12887587,140.28,140.24,9.1]
[1763242053767,9.75559387,140.28,140.24,9.1]
[1763242053968,1.906718,140.27,140.24,9.1]
[1763242054947,9.75593284,140.27,140.24,9.1]
[1763242055671,1.906718,140.26,140.24,9.1]
[1763242055875,1.906718,140.25,140.22,16.92034927]
[1763242056177,2.626718,140.25,140.21,36.50411852]
[1763242056363,2.626718,140.25,140.21,37.16411852]
[1763242057575,9.75688718,140.25,140.21,37.16411852]
[1763242058383,1.906718,140.24,140.21,37.16411852]
[1763242059079,2.626718,140.24,140.21,37.16411852]
[1763242059877,1.906718,140.24,140.21,37.16411852]
[1763242060458,2.626718,140.23,140.21,8.44]
[1763242060957,0.72,140.22,140.2,9.78882769]
[1763242061261,2.626718,140.22,140.19,36.82487286]
[1763242061577,1.906718,140.21,140.18,7.79352811]
[1763242061962,1.906718,140.22,140.18,7.79352811]
[1763242062362,2.626718,140.22,140.18,7.79352811]
[1763242062958,3.70047126,140.22,140.18,7.79352811]
[1763242064393,3.70047126,140.22,140.18,28.84571158]
[1763242065660,3.70047126,140.22,140.19,15.57286882]
[1763242066182,0.72,140.22,140.19,16.25286882]
[1763242066365,10.81199478,140.23,140.19,16.25286882]
[1763242066884,2.98047126,140.26,140.2,13.44929895]
[1763242067200,0.7,140.25,140.21,8.44]
[1763242067896,0.7,140.25,140.21,15.57168988]
[1763242068591,7.83013648,140.25,140.21,15.57168988]
[1763242068787,10.81060774,140.25,140.21,15.57168988]
[1763242069001,0.7,140.24,140.21,15.57168988]
[1763242071276,0.7,140.27,140.22,13.44929895]
[1763242071478,2.98047126,140.28,140.23,11.42047126]
[1763242071682,3.68047126,140.28,140.23,12.10047126]
[1763242071885,3.68047126,140.28,140.24,0.68]
[1763242072469,7.82758374,140.3,140.25,18.55059603]
[1763242072795,10.808055,140.3,140.25,18.55059603]
[1763242072973,0.7,140.29,140.25,19.23059603]
[1763242073179,3.68047126,140.29,140.25,16.25012477]
[1763242073688,0.7,140.28,140.25,16.25012477]
[1763242073898,0.7,140.28,140.25,15.57012477]
[1763242076295,0.7,140.28,140.25,8.44]
[1763242076496,7.82860777,140.28,140.25,8.44]
[1763242076701,2.98047126,140.27,140.24,8.44]
[1763242076881,10.80958394,140.27,140.24,8.44]
[1763242077087,0.7,140.26,140.24,8.44]
[1763242080806,0.7,140.26,140.24,15.57063268]
[1763242081802,0.7,140.26,140.24,7.13063268]
[1763242089317,2.98047126,140.28,140.24,10.11110394]
[1763242089494,0.7,140.3,140.26,2.98047126]
[1763242090003,0.7,140.3,140.27,11.42047126]
[1763242090204,0.7,140.3,140.27,8.44]
[1763242090695,0.7,140.3,140.28,7.12859994]
[1763242092442,0.7,140.3,140.27,2.98047126]
[1763242092443,0.7,140.3,140.27,15.56899476]
[1763242092726,3.68047126,140.3,140.27,15.56899476]
[1763242094524,0.7,140.29,140.27,15.56899476]
[1763242098241,0.7,140.29,140.27,18.54946602]
[1763242098445,0.7,140.3,140.27,18.54946602]
[1763242107531,0.7,140.3,140.27,19.21946602]
[1763242109023,0.7,140.3,140.27,18.54946602]
[1763242110346,0.7,140.3,140.28,2.98047126]
[1763242111640,0.7,140.3,140.28,10.10883991]
[1763242112016,0.7,140.3,140.28,7.12836865]
[1763242114025,0.7,140.3,140.28,10.10883991]
[1763242114228,0.7,140.3,140.27,15.56895422]
[1763242114435,0.7,140.3,140.27,18.54942548]
[1763242114762,0.7,140.3,140.27,19.21942548]
[1763242118355,0.7,140.3,140.27,10.10942548]
[1763242118590,7.82760535,140.3,140.27,15.56895422]
[1763242119061,0.7,140.29,140.27,15.56895422]
[1763242122155,0.7,140.29,140.27,18.54942548]
[1763242122867,0.7,140.29,140.27,17.4740017]
[1763242124974,0.7,140.29,140.27,7.12895422]
[1763242125160,0.7,140.29,140.27,15.56895422]
[1763242128597,0.7,140.29,140.27,8.44]
[1763242128775,0.7,140.29,140.27,7.12910424]
[1763242128963,2.60504748,140.29,140.26,15.56935344]
[1763242129278,0.7,140.29,140.26,15.56935344]
[1763242129476,0.7,140.28,140.26,15.56935344]
[1763242133966,0.7,140.28,140.26,7.12935344]
[1763242134271,0.7,140.28,140.26,15.56935344]
[1763242136177,0.7,140.28,140.23,9.72599105]
[1763242136178,2.60504748,140.28,140.23,9.72599105]
[1763242136559,0.7,140.27,140.23,9.72599105]
[1763242137081,0.7,140.27,140.24,8.44]
[1763242137285,0.7,140.29,140.26,1.90504748]
[1763242137583,0.7,140.29,140.26,10.34504748]
[1763242137790,0.7,140.29,140.26,11.03504748]
[1763242138185,0.7,140.29,140.26,18.16431456]
[1763242138972,0.7,140.29,140.26,16.25926708]
[1763242140386,0.7,140.29,140.26,18.16431456]
[1763242142264,0.7,140.29,140.26,25.29201484]
[1763242144675,0.7,140.29,140.26,24.60201484]
[1763242146171,0.7,140.29,140.26,22.69696736]
[1763242146976,0.7,140.29,140.26,23.38696736]
[1763242149670,0.7,140.29,140.26,14.25696736]
[1763242151202,9.73333649,140.29,140.26,7.12770028]
[1763242151496,9.14,140.28,140.22,18.22882769]
[1763242151801,11.04504748,140.28,140.23,1.90504748]
[1763242152101,0.7,140.27,140.23,1.90504748]
[1763242152588,9.73434761,140.27,140.23,9.035961]
[1763242152787,9.73434761,140.27,140.23,17.475961]
[1763242152969,0.67,140.26,140.23,10.34504748]
[1763242153164,8.44,140.28,140.23,17.4761452]
[1763242153165,17.47384503,140.28,140.23,17.4761452]
[1763242153386,0.68,140.27,140.24,2.59504748]
[1763242153783,0.68,140.27,140.24,1.90504748]
[1763242154471,0.68,140.27,140.24,30.44809725]
[1763242154669,0.68,140.27,140.23,18.16603372]
[1763242154866,9.7142251,140.27,140.23,38.88854576]
[1763242155070,0.68,140.26,140.23,36.98349828]
[1763242155299,0.68,140.26,140.23,38.88854576]
[1763242156215,0.68,140.26,140.23,36.98349828]
[1763242156377,0.68,140.26,140.23,15.57098624]
[1763242157095,0.68,140.26,140.23,17.47603372]
[1763242157395,0.68,140.26,140.23,24.60487323]
[1763242160021,0.68,140.26,140.23,22.69982575]
[1763242164098,0.68,140.26,140.23,24.60487323]
[1763242164913,0.68,140.26,140.23,17.47388699]
[1763242165113,1.90504748,140.24,140.2,9.78882769]
[1763242165287,0.68,140.26,140.22,2.59504748]
[1763242165494,0.68,140.25,140.23,1.90504748]
[1763242166404,0.68,140.25,140.22,12.94009496]
[1763242166813,0.68,140.25,140.22,20.07130693]
[1763242169790,0.68,140.25,140.23,1.90504748]
[1763242170196,0.68,140.25,140.23,10.93881726]
[1763242171423,0.68,140.25,140.23,18.06964182]
[1763242173636,0.68,140.28,140.24,0.69]
[1763242173831,0.68,140.27,140.24,2.59504748]
[1763242173994,0.68,140.27,140.24,1.90504748]
[1763242174920,0.68,140.27,140.24,9.03533307]
[1763242176803,0.68,140.27,140.24,7.13028559]
[1763242186234,7.80914121,140.27,140.24,7.13028559]
[1763242186438,0.65,140.26,140.24,7.13028559]
[1763242187016,0.65,140.26,140.23,18.54892341]
[1763242188652,0.65,140.26,140.23,19.24892341]
[1763242189633,0.65,140.26,140.23,30.66690302]
[1763242190437,0.65,140.26,140.23,29.96690302]
[1763242190742,0.65,140.26,140.23,18.54892341]
[1763242191125,0.65,140.26,140.23,19.24892341]
[1763242191326,0.65,140.26,140.23,22.83595922]
[1763242191535,7.77977702,140.26,140.22,10.10938948]
[1763242191732,8.44,140.25,140.2,61.8]
[1763242192045,2.97797961,140.22,140.18,11.41797961]
[1763242192426,0.65,140.21,140.18,3.67797961]
[1763242192632,0.65,140.21,140.18,19.2516353]
[1763242192940,0.65,140.21,140.18,11.41797961]
[1763242193245,0.65,140.21,140.18,18.551524]
[1763242193722,0.65,140.21,140.18,15.57354439]
[1763242194253,0.65,140.21,140.18,8.44]
[1763242194745,0.65,140.21,140.17,51.69197708]
[1763242195049,0.65,140.21,140.17,73.09669991]
[1763242195939,0.65,140.21,140.17,70.1187203]
[1763242196133,0.65,140.21,140.17,73.09669991]
[1763242196517,7.78235054,140.21,140.17,29.78516978]
[1763242196850,3.62797961,140.21,140.17,30.48516978]
[1763242197036,0.65,140.2,140.17,41.90314939]
[1763242199048,10.76070674,140.2,140.17,7.13396978]
[1763242199241,2.97797961,140.19,140.15,34.06917961]
[1763242199450,3.62797961,140.19,140.15,8.44]
[1763242199639,0.65,140.18,140.15,8.44]
[1763242200254,0.65,140.18,140.15,18.5529752]
[1763242201452,0.65,140.18,140.15,10.1129752]
[1763242202236,0.65,140.18,140.16,2.97797961]
[1763242202559,2.97797961,140.21,140.17,2.97797961]
[1763242202725,2.97797961,140.2,140.16,32.51169836]
[1763242203143,0.65,140.19,140.16,32.51169836]
[1763242203526,3.62797961,140.19,140.14,17.62444429]
[1763242203726,2.97797961,140.18,140.14,2.97797961]
[1763242203926,3.62797961,140.18,140.14,2.97797961]
[1763242204122,0.65,140.17,140.14,2.97797961]
[1763242205048,0.65,140.17,140.15,10.11319188]
[1763242206450,15.57352185,140.19,140.14,15.57566428]
[1763242206652,0.65,140.18,140.15,2.97797961]
[1763242206850,0.65,140.18,140.16,2.97797961]
[1763242208935,0.65,140.18,140.15,7.83479365]
[1763242208936,7.78368752,140.18,140.15,2.97797961]
[1763242209139,7.78368752,140.18,140.14,40.31403635]
[1763242209340,0.65,140.17,140.14,40.31403635]
[1763242209554,0.65,140.17,140.14,41.01403635]
[1763242210661,0.65,140.17,140.15,10.11314493]
[1763242211166,0.65,140.17,140.14,40.31397853]
[1763242212162,0.65,140.17,140.14,31.87397853]
[1763242212359,7.7842406,140.17,140.14,24.73839719]
[1763242212752,0.71,140.16,140.14,31.87396643]
[1763242214245,0.71,140.16,140.13,8.44]
[1763242214445,10.82270291,140.16,140.11,25.36607699]
[1763242214664,10.82270291,140.16,140.11,28.3440566]
[1763242214848,0.69,140.15,140.11,28.3440566]
[1763242215580,0.69,140.15,140.11,19.9040566]
[1763242215748,0.69,140.15,140.11,28.3440566]
[1763242216148,7.82529761,140.15,140.11,18.55522891]
[1763242216568,0.69,140.14,140.11,18.55522891]
[1763242216754,0.69,140.14,140.12,2.97797961]
[1763242217070,0.69,140.14,140.11,18.55521713]
[1763242217252,0.69,140.14,140.11,11.41797961]
[1763242217571,0.69,140.14,140.09,21.84956855]
[1763242217572,7.13623064,140.13,140.09,21.84956855]
[1763242217778,7.13623064,140.13,140.09,11.41797961]
[1763242218076,0.69,140.12,140.08,6.70241434]
[1763242218387,0.69,140.12,140.08,3.72443473]
[1763242218388,3.66797961,140.12,140.08,3.72443473]
[1763242218704,0.69,140.11,140.08,3.72443473]
[1763242219178,0.69,140.11,140.08,6.70241434]
[1763242219375,0.69,140.11,140.08,13.84108827]
[1763242219542,0.69,140.13,140.1,2.97797961]
[1763242219743,0.69,140.14,140.11,2.97797961]
[1763242219970,0.69,140.13,140.11,2.97797961]
[1763242220175,0.69,140.13,140.1,10.1156086]
[1763242220481,0.69,140.13,140.09,11.41797961]
[1763242220673,3.66797961,140.13,140.09,2.97797961]
[1763242221074,0.69,140.12,140.09,2.97797961]
[1763242221371,0.69,140.12,140.08,19.30293231]
[1763242221562,0.69,140.12,140.08,22.28091192]
[1763242221886,7.82688661,140.12,140.08,13.84091192]
[1763242222187,7.82688661,140.12,140.08,6.70241434]
[1763242222363,0.69,140.11,140.09,2.97797961]
[1763242222891,0.69,140.11,140.08,3.72443473]
[1763242223664,25.67069992,140.11,140.08,3.72443473]
[1763242223867,2.97797961,140.09,140.05,0.1]
[1763242224185,8.44,140.09,140.06,2.97797961]
[1763242224367,0.69,140.08,140.06,2.97797961]
[1763242224688,0.69,140.08,140.05,7.24028436]
[1763242224875,0.69,140.08,140.06,2.97797961]
[1763242225269,9.13,140.1,140.07,2.97797961]
[1763242225472,0.69,140.09,140.07,2.97797961]
[1763242225681,0.69,140.09,140.06,3.69797961]
[1763242225879,0.69,140.09,140.06,10.11737403]
[1763242226389,2.97797961,140.08,140.05,8.56]
[1763242226764,0.69,140.07,140.05,8.56]
[1763242227290,0.69,140.07,140.05,0.1]
[1763242227968,10.80732847,140.07,140.05,0.1]
[1763242228389,0.69,140.06,140.05,0.1]
[1763242229601,3.66797961,140.06,140.05,0.1]
[1763242229900,10.80777683,140.06,140.05,0.1]
[1763242230404,9.78882769,140.05,140.04,1e-08]
[1763242230613,24.20478691,140.05,140.04,1e-08]
[1763242231227,9.78882769,140.01,140.0,203.02]
[1763242231370,21.2268073,140.01,140.0,203.02]
[1763242231573,11.43797961,140.01,140.0,203.02]
[1763242231784,40.04032157,140.01,140.0,203.02]
[1763242232168,28.60234196,140.01,140.0,203.02]
[1763242232473,17.851007,140.05,140.0,203.02]
[1763242232674,21.45692522,140.02,140.01,0.72]
[1763242232985,15.6003822,140.05,140.01,3.69797961]
[1763242233194,8.46,140.05,140.01,0.72]
[1763242233515,2.97797961,140.04,140.01,0.72]
[1763242233797,8.46,140.05,140.01,3.69797961]
[1763242234003,18.57781489,140.06,140.02,0.72]
[1763242235226,15.59983528,140.06,140.02,0.72]
[1763242235535,18.57781489,140.06,140.02,0.72]
[1763242235904,2.97797961,140.05,140.02,0.72]
[1763242236096,2.97797961,140.05,140.0,213.86067927]
[1763242236297,2.97797961,140.05,140.01,0.72]
[1763242237222,9.78882769,140.14,140.04,2.97797961]
[1763242237540,2.97797961,140.11,140.06,2.97797961]
[1763242237696,2.97797961,140.13,140.05,8.46]
[1763242237896,1.99999999,140.2,140.1,2.97797961]
[1763242237897,7.13534908,140.15,140.1,2.97797961]
[1763242238225,2.97797961,140.14,140.09,2.97797961]
[1763242238831,2.97797961,140.14,140.1,0.72]
[1763242239116,2.97797961,140.14,140.1,3.69797961]
[1763242239318,18.57354923,140.15,140.1,10.8357222]
[1763242239634,15.59556962,140.15,140.11,3.69797961]
[1763242239804,2.97797961,140.14,140.11,0.72]
[1763242240508,2.97797961,140.14,140.1,2.97797961]
[1763242240715,2.97797961,140.11,140.07,3.69797961]
[1763242240908,2.97797961,140.11,140.07,0.72]
[1763242241262,10.11591119,140.1,140.07,0.72]
[1763242241799,7.13793158,140.1,140.07,0.72]
[1763242242095,10.11533948,140.11,140.07,0.72]
[1763242242321,2.97797961,140.11,140.07,3.69797961]
[1763242242531,2.97797961,140.11,140.07,0.72]
[1763242242720,2.97797961,140.1,140.07,0.72]
[1763242243437,10.11533556,140.11,140.07,3.69797961]
[1763242243816,10.11533556,140.11,140.08,0.67]
[1763242244539,10.11533556,140.11,140.06,0.67]
[1763242244739,2.97797961,140.1,140.07,0.67]
[1763242245838,10.11533556,140.11,140.07,3.64797961]
[1763242246418,10.11533556,140.11,140.08,0.67]
[1763242246833,15.59684315,140.12,140.08,0.67]
[1763242247035,1.91052397,140.11,140.08,0.67]
[1763242247731,9.71828271,140.1,140.05,1.91052397]
[1763242247934,1.91052397,140.07,140.02,1.91052397]
[1763242248343,1.91052397,140.06,140.02,1.91052397]
[1763242248528,2.58052397,140.06,140.01,1.91052397]
[1763242248720,1.91052397,140.06,140.01,1.91052397]
[1763242248918,2.58052397,140.05,140.0,204.93052397]
[1763242249227,1.91052397,140.05,140.01,1.91052397]
[1763242249624,7.1408169,140.04,140.01,1.91052397]
[1763242249942,7.1408169,140.04,140.01,0.67]
[1763242250621,9.05099172,140.05,140.01,0.67]
[1763242251243,9.05099172,140.05,140.01,2.58052397]
[1763242251644,9.05099172,140.05,140.02,0.67]
[1763242252234,9.72099172,140.05,140.01,1.91052397]
[1763242252436,9.72099172,140.05,140.01,0.67]
[1763242252635,9.72099172,140.05,140.02,0.67]
[1763242254150,9.05099172,140.05,140.02,0.67]
[1763242254847,9.05099172,140.05,140.0,220.53332276]
[1763242255146,7.14046775,140.05,140.01,0.67]
[1763242255327,9.05099172,140.05,140.01,0.67]
[1763242255532,9.72099172,140.05,140.01,0.67]
[1763242256628,1.91052397,140.05,140.01,9.72274997]
[1763242256830,8.46,140.06,140.02,1.91052397]
[1763242257027,31.70119095,140.07,140.02,11.04052397]
[1763242257318,1.91052397,140.06,140.03,0.67]
[1763242257548,1.91052397,140.05,140.03,0.67]
[1763242258224,1.91052397,140.05,140.01,9.13]
[1763242258437,47.63888572,140.07,140.02,0.67]
[1763242258644,1.91052397,140.06,140.02,2.58052397]
[1763242259149,1.91052397,140.06,140.03,0.67]
[1763242259337,56.09888572,140.07,140.03,0.67]
[1763242259836,9.05070744,140.06,140.03,0.67]
[1763242260230,7.14018347,140.06,140.03,0.67]
[1763242260432,9.05070744,140.06,140.03,0.67]
[1763242260851,7.14018347,140.06,140.03,0.67]
[1763242261036,8.46,140.07,140.03,2.58052397]
[1763242261254,7.13877784,140.08,140.03,2.58052397]
[1763242261434,38.91965027,140.09,140.04,0.67]
[1763242261637,7.13928749,140.07,140.04,0.67]
[1763242262132,1.91052397,140.06,140.01,7.14216109]
[1763242262334,1.91052397,140.06,140.03,0.67]
[1763242263540,26.8980302,140.07,140.03,0.67]
[1763242263754,26.8980302,140.07,140.03,2.58052397]
[1763242264152,9.04981146,140.07,140.04,0.67]
[1763242266564,26.8980302,140.07,140.04,0.67]
[1763242266945,9.04981146,140.07,140.04,0.67]
[1763242267664,9.04981146,140.07,140.0,203.02]
[1763242267844,18.17981146,140.07,140.02,1.91052397]
[1763242268045,1.91052397,140.06,140.01,9.72287094]
[1763242268254,1.91052397,140.06,140.02,0.67]
[1763242269064,1.91052397,140.05,140.02,0.67]
[1763242269447,7.1408169,140.04,140.02,0.67]
[1763242269751,7.1408169,140.04,140.01,0.67]
[1763242271069,9.05134087,140.04,140.01,0.67]
[1763242271448,7.1408169,140.04,140.01,0.67]
[1763242271848,15.60049105,140.05,140.01,2.58052397]
[1763242272052,17.51101502,140.05,140.01,2.58052397]
[1763242272347,17.51101502,140.05,140.02,0.67]
[1763242273488,15.60049105,140.05,140.02,0.67]
[1763242273863,17.51101502,140.05,140.02,0.67]
[1763242274270,17.51101502,140.05,140.02,0.68]
[1763242274271,1.91052397,140.04,140.02,0.68]
[1763242274882,1.91052397,140.04,140.01,0.68]
[1763242276691,7.14132685,140.03,140.01,0.68]
[1763242277383,9.05153071,140.04,140.01,7.82234419]
[1763242277587,10.37052397,140.05,140.01,7.82234419]
[1763242277792,1.91052397,140.04,140.02,0.68]
[1763242277961,15.60041124,140.05,140.02,0.68]
[1763242278459,7.14041124,140.05,140.02,0.68]
[1763242278656,7.14041124,140.05,140.02,2.59052397]
[1763242278869,7.14041124,140.05,140.03,0.68]
[1763242279286,8.46,140.07,140.04,1.91052397]
[1763242279489,104.2,140.09,140.05,1.91052397]
[1763242279490,9.04879222,140.09,140.05,1.91052397]
[1763242279795,7.13826825,140.09,140.06,1.91052397]
[1763242279998,7.13826825,140.09,140.07,0.68]
[1763242280765,9.04879222,140.09,140.07,0.68]
[1763242282485,1.91052397,140.08,140.05,0.68]
[1763242282675,9.04950347,140.08,140.05,0.68]
[1763242284200,27.56644807,140.08,140.03,9.73168029]
[1763242284371,26.89644807,140.08,140.03,9.05168029]
[1763242284573,9.04950347,140.08,140.04,0.68]
[1763242284886,9.04950347,140.08,140.04,2.59052397]
[1763242285085,9.04950347,140.08,140.05,0.68]
[1763242285995,1.91052397,140.1,140.06,1.91052397]
[1763242286194,28.21424372,140.11,140.07,1.91052397]
[1763242286688,7.13794194,140.1,140.08,0.68]
[1763242287771,15.59744563,140.11,140.08,0.68]
[1763242287990,15.59744563,140.11,140.08,2.59052397]
[1763242288310,9.04747517,140.12,140.08,2.59052397]
[1763242288605,7.13647172,140.13,140.1,1.91052397]
[1763242288773,7.13572142,140.14,140.1,1.91052397]
[1763242288972,7.13572142,140.14,140.11,0.68]
[1763242289890,7.13572142,140.14,140.11,2.59052397]
[1763242290401,7.13543082,140.15,140.12,2.59052397]
[1763242290789,7.13543082,140.15,140.13,0.68]